fUSD/lending_fUSD_20250108
["ID","MTS","AMOUNT","RATE_DAILY","PERIOD"]
[348111089,1736325043211,-178.20067064,0.0001,2]
[348111090,1736325043221,-182.76473708,0.0001,2]
[348111091,1736325043231,-699.73237637,0.0001,2]
[348111092,1736325043241,-999.67890469,0.0001,2]
[348111093,1736325043250,-10728.63127769,0.0001,2]
[348111094,1736325043260,-12962.57986885,0.0001,2]
[348111095,1736325043271,-286.99233809,0.0001,2]
[348111096,1736325043282,-286.99233809,0.0001,2]
[348111097,1736325043291,-151.17,0.0001,2]
[348111098,1736325043301,-1012.4,0.0001,2]
[348111099,1736325043310,-209.57202966,0.0001,2]
[348111100,1736325043320,-209.57202962,0.00010005,2]
[348111101,1736325043329,-155.263,0.0001001,2]
[348111102,1736325043339,-339.02,0.00010016,2]
[348111103,1736325043348,-775.58181372,0.00010067,2]
[348111104,1736325043359,-1336.0,0.0001008,2]
[348111105,1736325043368,-2000.0,0.000101,2]
[348111106,1736325043377,-200.0,0.000101,2]
[348111107,1736325043387,-200.0,0.000101,2]
[348111108,1736325043397,-209.57202962,0.00010111,2]
[348111109,1736325043407,-182.79,0.00010137,2]
[348111110,1736325043416,-314.71,0.00010137,2]
[348111111,1736325043426,-599.95,0.00010137,2]
[348111112,1736325043435,-775.58181372,0.0001015,2]
[348111113,1736325043445,-178.20067062,0.0001015,2]
[348111114,1736325043455,-699.73237635,0.0001015,2]
[348111115,1736325043464,-999.67890468,0.0001015,2]
[348111116,1736325043474,-1000.0,0.0001016,2]
[348111117,1736325043483,-713.52,0.00010197,2]
[348111118,1736325043493,-1014.0,0.000102,2]
[348111119,1736325043502,-148791.98368183,0.000102,2]
[348111120,1736325043512,-2000.0,0.00010201,2]
[348111121,1736325043521,-200.0,0.00010201,2]
[348111122,1736325043531,-200.0,0.00010201,2]
[348111123,1736325043540,-209.57202962,0.00010216,2]
[348111124,1736325043550,-775.58181372,0.00010233,2]
[348111125,1736325043560,-19619.48,0.00010271,2]
[348111126,1736325043569,-995.21,0.00010271,2]
[348111127,1736325043580,-1495.6,0.00010271,2]
[348111128,1736325043589,-723.65,0.00010271,2]
[348111129,1736325043598,-500.0,0.00010271,2]
[348111130,1736325043609,-500.0,0.00010271,2]
[348111131,1736325043618,-1265.8,0.00010271,2]
[348111132,1736325043628,-567.29,0.00010271,2]
[348111133,1736325043637,-500.0,0.00010271,2]
[348111134,1736325043646,-530.04,0.00010271,2]
[348111135,1736325043657,-500.0,0.00010271,2]
[348111136,1736325043666,-500.0,0.00010271,2]
[348111137,1736325043675,-867.58,0.00010271,2]
[348111138,1736325043684,-500.0,0.00010271,2]
[348111139,1736325043694,-500.0,0.00010271,2]
[348111140,1736325043703,-500.0,0.00010271,2]
[348111141,1736325043714,-500.0,0.00010271,2]
[348111142,1736325043723,-500.0,0.00010271,2]
[348111143,1736325043733,-1089.22,0.00010271,2]
[348111144,1736325043742,-500.0,0.00010271,2]
[348111145,1736325043751,-1064.46,0.00010272,2]
[348111146,1736325043761,-601.4,0.00010272,2]
[348111147,1736325043771,-500.0,0.00010272,2]
[348111148,1736325043781,-500.0,0.00010272,2]
[348111149,1736325043791,-500.0,0.00010272,2]
[348111150,1736325043801,-1771.17,0.00010272,2]
[348111151,1736325043811,-907.22,0.00010272,2]
[348111152,1736325043820,-500.0,0.00010272,2]
[348111153,1736325043829,-500.0,0.00010272,2]
[348111154,1736325043839,-1957.43,0.00010272,2]
[348111155,1736325043848,-500.0,0.00010272,2]
[348111156,1736325043857,-500.0,0.00010272,2]
[348111157,1736325043867,-500.0,0.00010272,2]
[348111158,1736325043875,-500.0,0.00010272,2]
[348111159,1736325043885,-569.2,0.00010272,2]
[348111160,1736325043894,-979.93,0.00010272,2]
[348111161,1736325043904,-500.0,0.00010272,2]
[348111162,1736325043913,-500.0,0.00010272,2]
[348111163,1736325043922,-500.0,0.00010272,2]
[348111164,1736325043932,-500.0,0.00010272,2]
[348111165,1736325043942,-500.0,0.00010272,2]
[348111166,1736325043951,-167.78811425,0.00010272,2]
[348111167,1736325043961,-500.0,0.00010272,2]
[348111168,1736325043970,-500.0,0.00010272,2]
[348111169,1736325043980,-530.4,0.00010272,2]
[348111170,1736325043989,-500.0,0.00010272,2]
[348111171,1736325044001,-604.54793491,0.00010272,2]
[348111172,1736325044010,-500.0,0.00010272,2]
[348111173,1736325044020,-500.0,0.00010272,2]
[348111174,1736325044031,-1741.95,0.00010272,2]
[348111175,1736325044041,-500.0,0.00010272,2]
[348111176,1736325044051,-500.0,0.00010272,2]
[348111177,1736325044060,-500.0,0.00010272,2]
[348111178,1736325044070,-500.0,0.00010272,2]
[348111179,1736325044080,-500.0,0.00010272,2]
[348111180,1736325044089,-500.0,0.00010272,2]
[348111181,1736325044099,-500.0,0.00010272,2]
[348111182,1736325044109,-500.0,0.00010272,2]
[348111183,1736325044119,-500.0,0.00010272,2]
[348111184,1736325044128,-500.0,0.00010272,2]
[348111185,1736325044138,-500.0,0.00010272,2]
[348111186,1736325044147,-500.0,0.00010272,2]
[348111187,1736325044157,-500.0,0.00010272,2]
[348111188,1736325044166,-500.0,0.00010272,2]
[348111189,1736325044175,-500.0,0.00010272,2]
[348111190,1736325044185,-500.0,0.00010272,2]
[348111191,1736325044199,-500.0,0.00010272,2]
[348111192,1736325044208,-500.0,0.00010272,2]
[348111193,1736325044218,-500.0,0.00010272,2]
[348111194,1736325044227,-500.0,0.00010272,2]
[348111195,1736325044238,-500.0,0.00010272,2]
[348111196,1736325044247,-500.0,0.00010272,2]
[348111197,1736325044257,-500.0,0.00010272,2]
[348111198,1736325044267,-500.0,0.00010272,2]
[348111199,1736325044276,-500.0,0.00010272,2]
[348111200,1736325044286,-500.0,0.00010272,2]
[348111201,1736325044295,-500.0,0.00010272,2]
[348111202,1736325044304,-500.0,0.00010272,2]
[348111203,1736325044313,-303.07,0.00010272,2]
[348111204,1736325044323,-500.0,0.00010272,2]
[348111205,1736325044332,-500.0,0.00010272,2]
[348111206,1736325044341,-500.0,0.00010272,2]
[348111207,1736325044351,-500.0,0.00010272,2]
[348111208,1736325044360,-500.0,0.00010272,2]
[348111209,1736325044370,-500.0,0.00010272,2]
[348111210,1736325044381,-326.17,0.00010272,2]
[348111211,1736325044392,-986.05,0.00010272,2]
[348111212,1736325044402,-500.0,0.00010272,2]
[348111213,1736325044411,-181.94,0.00010272,2]
[348111214,1736325044420,-500.0,0.00010272,2]
[348111215,1736325044431,-500.0,0.00010272,2]
[348111216,1736325044440,-500.0,0.00010272,2]
[348111217,1736325044450,-500.0,0.00010272,2]
[348111218,1736325044461,-500.0,0.00010272,2]
[348111219,1736325044471,-500.0,0.00010272,2]
[348111220,1736325044480,-500.0,0.00010272,2]
[348111221,1736325044491,-500.0,0.00010272,2]
[348111222,1736325044502,-1040.64,0.00010272,2]
[348111223,1736325044512,-500.0,0.00010272,2]
[348111224,1736325044521,-500.0,0.00010272,2]
[348111225,1736325044532,-500.0,0.00010272,2]
[348111226,1736325044542,-500.0,0.00010272,2]
[348111227,1736325044552,-500.0,0.00010272,2]
[348111228,1736325044562,-500.0,0.00010272,2]
[348111229,1736325044571,-500.0,0.00010272,2]
[348111230,1736325044581,-500.0,0.00010272,2]
[348111231,1736325044590,-500.0,0.00010272,2]
[348111232,1736325044599,-500.0,0.00010272,2]
[348111233,1736325044609,-500.0,0.00010272,2]
[348111234,1736325044619,-500.0,0.00010272,2]
[348111235,1736325044629,-1735.33,0.00010272,2]
[348111236,1736325044638,-500.0,0.00010272,2]
[348111237,1736325044648,-500.0,0.00010272,2]
[348111238,1736325044657,-694.33,0.00010272,2]
[348111239,1736325044667,-500.0,0.00010272,2]
[348111240,1736325044676,-500.0,0.00010272,2]
[348111241,1736325044686,-500.0,0.00010272,2]
[348111242,1736325044696,-500.0,0.00010272,2]
[348111243,1736325044705,-597.85,0.00010272,2]
[348111244,1736325044715,-500.0,0.00010272,2]
[348111245,1736325044724,-500.0,0.00010272,2]
[348111246,1736325044734,-500.0,0.00010272,2]
[348111247,1736325044743,-3247.43,0.00010272,2]
[348111248,1736325044753,-588.35,0.00010272,2]
[348111249,1736325044763,-500.0,0.00010272,2]
[348111250,1736325044772,-500.0,0.00010272,2]
[348111251,1736325044783,-500.0,0.00010272,2]
[348111252,1736325044793,-500.0,0.00010272,2]
[348111253,1736325044803,-500.0,0.00010272,2]
[348111254,1736325044812,-500.0,0.00010272,2]
[348111255,1736325044822,-500.0,0.00010272,2]
[348111256,1736325044832,-500.0,0.00010272,2]
[348111257,1736325044842,-500.0,0.00010272,2]
[348111258,1736325044851,-553.78,0.00010272,2]
[348111259,1736325044861,-500.0,0.00010272,2]
[348111260,1736325044871,-500.0,0.00010272,2]
[348111261,1736325044880,-500.0,0.00010272,2]
[348111262,1736325044890,-589.47,0.00010272,2]
[348111263,1736325044899,-500.0,0.00010272,2]
[348111264,1736325044909,-500.0,0.00010272,2]
[348111265,1736325044918,-559.60494504,0.00010272,2]
[348111266,1736325044928,-507.4,0.00010272,2]
[348111267,1736325044937,-500.0,0.00010272,2]
[348111268,1736325044947,-500.0,0.00010272,2]
[348111269,1736325044956,-500.0,0.00010272,2]
[348111270,1736325044965,-500.0,0.00010272,2]
[348111271,1736325044975,-646.23,0.00010272,2]
[348111272,1736325044984,-500.0,0.00010272,2]
[348111273,1736325044994,-500.0,0.00010272,2]
[348111274,1736325045004,-500.0,0.00010272,2]
[348111275,1736325045013,-500.0,0.00010272,2]
[348111276,1736325045023,-500.0,0.00010272,2]
[348111277,1736325045033,-500.0,0.00010272,2]
[348111278,1736325045043,-500.0,0.00010272,2]
[348111279,1736325045053,-500.0,0.00010272,2]
[348111280,1736325045063,-500.0,0.00010272,2]
[348111281,1736325045073,-235.23,0.00010272,2]
[348111282,1736325045082,-1872.61,0.00010272,2]
[348111283,1736325045092,-500.0,0.00010272,2]
[348111284,1736325045102,-500.0,0.00010272,2]
[348111285,1736325045112,-500.0,0.00010272,2]
[348111286,1736325045121,-500.0,0.00010272,2]
[348111287,1736325045131,-500.0,0.00010272,2]
[348111288,1736325045141,-1193.41,0.00010272,2]
[348111289,1736325045150,-500.0,0.00010272,2]
[348111290,1736325045160,-563.98,0.00010272,2]
[348111291,1736325045169,-3189.05,0.00010272,2]
[348111292,1736325045179,-500.0,0.00010272,2]
[348111293,1736325045189,-500.0,0.00010272,2]
[348111294,1736325045200,-500.0,0.00010272,2]
[348111295,1736325045210,-500.0,0.00010272,2]
[348111296,1736325045219,-500.0,0.00010272,2]
[348111297,1736325045228,-500.0,0.00010272,2]
[348111298,1736325045238,-500.0,0.00010272,2]
[348111299,1736325045248,-500.0,0.00010272,2]
[348111300,1736325045257,-500.0,0.00010272,2]
[348111301,1736325045268,-577.19,0.00010272,2]
[348111302,1736325045278,-1483.69,0.00010272,2]
[348111303,1736325045288,-1509.79,0.00010272,2]
[348111304,1736325045297,-500.0,0.00010272,2]
[348111305,1736325045307,-500.0,0.00010272,2]
[348111306,1736325045317,-1548.85,0.00010272,2]
[348111307,1736325045326,-816.93,0.00010272,2]
[348111309,1736325045336,-500.0,0.00010272,2]
[348111310,1736325045346,-500.0,0.00010272,2]
[348111312,1736325045355,-1246.72,0.00010272,2]
[348111314,1736325045369,-500.0,0.00010272,2]
[348111315,1736325045380,-512.73759222,0.00010272,2]
[348111316,1736325045389,-500.0,0.00010272,2]
[348111317,1736325045399,-906.52,0.00010272,2]
[348111318,1736325045409,-500.0,0.00010272,2]
[348111319,1736325045419,-500.0,0.00010272,2]
[348111320,1736325045429,-550.01531246,0.00010272,2]
[348111321,1736325045438,-2463.0,0.00010272,2]
[348111322,1736325045447,-556.12282881,0.00010272,2]
[348111323,1736325045456,-500.0,0.00010272,2]
[348111324,1736325045467,-500.0,0.00010272,2]
[348111325,1736325045477,-500.0,0.00010272,2]
[348111326,1736325045645,-719.65,0.00010272,2]
[348111327,1736325045655,-1457.33,0.00010272,2]
[348111328,1736325045665,-500.0,0.00010272,2]
[348111329,1736325045675,-500.0,0.00010272,2]
[348111330,1736325045685,-500.0,0.00010272,2]
[348111331,1736325045694,-1000.0,0.00010272,2]
[348111332,1736325045704,-500.0,0.00010272,2]
[348111333,1736325045714,-500.0,0.00010272,2]
[348111334,1736325045724,-1183.43,0.00010272,2]
[348111335,1736325045734,-500.0,0.00010272,2]
[348111336,1736325045744,-500.0,0.00010272,2]
[348111337,1736325045755,-659.96,0.00010272,2]
[348111338,1736325045765,-646.08,0.00010272,2]
[348111339,1736325045774,-500.0,0.00010272,2]
[348111340,1736325045785,-500.0,0.00010272,2]
[348111341,1736325045796,-500.0,0.00010272,2]
[348111342,1736325045806,-1058.47,0.00010272,2]
[348111343,1736325045815,-500.0,0.00010272,2]
[348111344,1736325045825,-500.0,0.00010272,2]
[348111345,1736325045835,-770.78,0.00010272,2]
[348111346,1736325045844,-951.98,0.00010272,2]
[348111348,1736325045854,-500.0,0.00010272,2]
[348111350,1736325045863,-500.0,0.00010272,2]
[348111352,1736325045873,-500.0,0.00010272,2]
[348111354,1736325045882,-500.0,0.00010272,2]
[348111356,1736325045891,-500.0,0.00010272,2]
[348111358,1736325045901,-500.0,0.00010272,2]
[348111360,1736325045911,-500.0,0.00010272,2]
[348111362,1736325045921,-500.0,0.00010272,2]
[348111364,1736325045931,-500.0,0.00010272,2]
[348111366,1736325045940,-500.0,0.00010272,2]
[348111368,1736325045951,-500.0,0.00010272,2]
[348111370,1736325045960,-1404.318473,0.00010272,2]
[348111372,1736325045970,-500.0,0.00010272,2]
[348111374,1736325045979,-1401.3,0.00010272,2]
[348111376,1736325045988,-2715.77,0.00010272,2]
[348111378,1736325045998,-500.0,0.00010272,2]
[348111380,1736325046007,-500.0,0.00010272,2]
[348111382,1736325046017,-500.0,0.00010272,2]
[348111384,1736325046027,-2134.63,0.00010272,2]
[348111386,1736325046037,-500.0,0.00010272,2]
[348111389,1736325046047,-697.05,0.00010272,2]
[348111390,1736325046057,-500.0,0.00010272,2]
[348111393,1736325046068,-742.13,0.00010272,2]
[348111395,1736325046078,-1058.034769,0.00010272,2]
[348111397,1736325046087,-500.0,0.00010272,2]
[348111398,1736325046097,-500.0,0.00010272,2]
[348111401,1736325046106,-500.0,0.00010272,2]
[348111403,1736325046116,-500.0,0.00010272,2]
[348111405,1736325046126,-500.0,0.00010272,2]
[348111407,1736325046135,-500.0,0.00010272,2]
[348111409,1736325046144,-500.0,0.00010272,2]
[348111411,1736325046154,-2755.33,0.00010272,2]
[348111413,1736325046163,-500.0,0.00010272,2]
[348111415,1736325046172,-500.0,0.00010273,2]
[348111416,1736325046182,-500.0,0.00010273,2]
[348111419,1736325046194,-500.0,0.00010273,2]
[348111421,1736325046203,-500.0,0.00010273,2]
[348111422,1736325046213,-500.0,0.00010273,2]
[348111424,1736325046222,-500.0,0.00010273,2]
[348111426,1736325046231,-500.0,0.00010273,2]
[348111428,1736325046242,-500.0,0.00010273,2]
[348111430,1736325046251,-186.18827744,0.00010273,2]
[348111432,1736325046261,-175.99131654,0.00010273,2]
[348111434,1736325046272,-500.0,0.00010273,2]
[348111436,1736325046282,-500.0,0.00010273,2]
[348111439,1736325046292,-200.96309827,0.00010273,2]
[348111441,1736325046301,-228.35171238,0.00010273,2]
[348111443,1736325046310,-448.11927723,0.00010273,2]
[348111445,1736325046320,-500.0,0.00010273,2]
[348111447,1736325046330,-338.42390481,0.00010273,2]
[348111449,1736325046339,-500.0,0.00010273,2]
[348111451,1736325046348,-183.42726381,0.00010273,2]
[348111453,1736325046358,-500.0,0.00010273,2]
[348111455,1736325046368,-270.76930856,0.00010273,2]
[348111457,1736325046379,-500.0,0.00010273,2]
[348111459,1736325046389,-500.0,0.00010273,2]
[348111461,1736325046399,-500.0,0.00010273,2]
[348111462,1736325046409,-500.0,0.00010273,2]
[348111464,1736325046420,-500.0,0.00010273,2]
[348111466,1736325046430,-490.13,0.00010273,2]
[348111468,1736325046439,-500.0,0.00010273,2]
[348111470,1736325046449,-500.0,0.00010273,2]
[348111472,1736325046458,-500.0,0.00010273,2]
[348111474,1736325046467,-500.0,0.00010273,2]
[348111476,1736325046476,-449.5,0.00010273,2]
[348111478,1736325046485,-500.0,0.00010273,2]
[348111479,1736325046494,-500.0,0.00010273,2]
[348111481,1736325046504,-500.0,0.00010273,2]
[348111483,1736325046514,-500.0,0.00010273,2]
[348111486,1736325046524,-500.0,0.00010273,2]
[348111488,1736325046535,-500.0,0.00010273,2]
[348111490,1736325046544,-500.0,0.00010273,2]
[348111492,1736325046554,-500.0,0.00010273,2]
[348111494,1736325046563,-500.0,0.00010273,2]
[348111495,1736325046573,-1915.73,0.00010273,2]
[348111497,1736325046583,-500.0,0.00010273,2]
[348111499,1736325046592,-500.0,0.00010273,2]
[348111501,1736325046602,-500.0,0.00010273,2]
[348111503,1736325046612,-500.0,0.00010273,2]
[348111505,1736325046622,-500.0,0.00010273,2]
[348111507,1736325046631,-500.0,0.00010273,2]
[348111509,1736325046641,-505.58,0.00010273,2]
[348111511,1736325046650,-500.0,0.00010273,2]
[348111513,1736325046660,-500.0,0.00010273,2]
[348111515,1736325046670,-500.0,0.00010273,2]
[348111517,1736325046680,-500.0,0.00010273,2]
[348111519,1736325046689,-500.0,0.00010273,2]
[348111521,1736325046698,-500.0,0.00010273,2]
[348111523,1736325046707,-500.0,0.00010273,2]
[348111525,1736325046717,-500.0,0.00010273,2]
[348111527,1736325046726,-500.0,0.00010273,2]
[348111529,1736325046735,-500.0,0.00010273,2]
[348111531,1736325046744,-500.0,0.00010273,2]
[348111533,1736325046753,-500.0,0.00010273,2]
[348111535,1736325046763,-500.0,0.00010273,2]
[348111537,1736325046773,-451.55354677,0.00010273,2]
[348111539,1736325046783,-325.9218732,0.00010273,2]
[348111541,1736325046792,-530.93,0.00010273,2]
[348111543,1736325046803,-807.11,0.00010273,2]
[348111545,1736325046813,-500.0,0.00010273,2]
[348111547,1736325046822,-1205.64,0.00010273,2]
[348111549,1736325046832,-471.411506,0.00010273,2]
[348111551,1736325046841,-500.0,0.00010273,2]
[348111553,1736325046851,-810.78,0.00010273,2]
[348111555,1736325046860,-500.0,0.00010273,2]
[348111557,1736325046870,-500.0,0.00010273,2]
[348111559,1736325046880,-500.0,0.00010273,2]
[348111560,1736325046890,-500.0,0.00010273,2]
[348111563,1736325046900,-500.0,0.00010273,2]
[348111564,1736325046910,-549.09,0.00010273,2]
[348111566,1736325046920,-616.61849769,0.00010273,2]
[348111569,1736325046930,-500.0,0.00010273,2]
[348111571,1736325046939,-500.0,0.00010273,2]
[348111573,1736325046948,-500.0,0.00010273,2]
[348111575,1736325046958,-2054.36,0.00010273,2]
[348111577,1736325046967,-2000.0,0.00010303,2]
[348111579,1736325046977,-200.0,0.00010303,2]
[348111581,1736325046987,-200.0,0.00010303,2]
[348111583,1736325046997,-775.58181372,0.00010317,2]
[348111585,1736325047006,-209.57202962,0.00010321,2]
[348111587,1736325047016,-151.0,0.00010342,2]
[348111589,1736325047026,-200636.08730582,0.00010343,2]
[348111591,1736325047036,-429.70395169,0.00010369,2]
[348111593,1736325047046,-963.56589007,0.000104,2]
[348111595,1736325047055,-775.58181372,0.000104,2]
[348111597,1736325047065,-182.76473707,0.000104,2]
[348111599,1736325047074,-178.20067062,0.000104,2]
[348111601,1736325047084,-699.73237635,0.000104,2]
[348111603,1736325047093,-999.67890468,0.000104,2]
[348111605,1736325047102,-406.72548586,0.00010406,2]
[348111607,1736325047111,-200.0,0.00010406,2]
[348111609,1736325047120,-200.0,0.00010406,2]
[348111611,1736325047130,-1000.0,0.00010411,2]
[348111613,1736325047139,-1000.0,0.00010411,2]
[348111615,1736325047148,-1000.0,0.00010411,2]
[348111616,1736325047157,-1000.0,0.00010411,2]
[348111618,1736325047167,-1000.0,0.00010411,2]
[348111620,1736325047176,-1000.0,0.00010411,2]
[348111623,1736325047187,-1000.0,0.00010411,2]
[348111624,1736325047199,-1000.0,0.00010411,2]
[348111626,1736325047208,-965.0,0.00010411,2]
[348111628,1736325047218,-209.57202962,0.00010426,2]
[348111630,1736325047227,-812.99,0.0001043,2]
[348111633,1736325047238,-8275.0,0.00010466,2]
[348111634,1736325047247,-4842.1524087,0.00010493,2]
[348111636,1736325047256,-12690.457859,0.00010493,2]
[348111638,1736325047267,-225.78117896,0.00010493,2]
[348111640,1736325047277,-500.0,0.00010499,2]
[348111642,1736325047287,-19619.48,0.00010499,2]
[348111644,1736325047296,-19619.48,0.00010499,2]
[348111646,1736325047305,-19619.48,0.00010499,2]
[348111648,1736325047314,-19619.48,0.00010499,2]
[348111650,1736325047324,-19619.48,0.00010499,2]
[348111652,1736325047333,-19619.48,0.00010499,2]
[348111654,1736325047342,-19619.48,0.00010499,2]
[348111656,1736325047352,-19619.48,0.00010499,2]
[348111658,1736325047362,-19619.48,0.00010499,2]
[348111660,1736325047371,-19619.48,0.00010499,2]
[348111662,1736325047382,-19619.48,0.00010499,2]
[348111664,1736325047391,-19619.48,0.00010499,2]
[348111666,1736325047401,-19619.48,0.00010499,2]
[348111668,1736325047411,-19619.48,0.00010499,2]
[348111670,1736325047421,-19619.50742716,0.00010499,2]
[348111672,1736325047430,-144354.59285995,0.000105,5]
[348111675,1736325047451,-297963.43375054,0.000105,5]
[348111678,1736325047469,-4469.77747567,0.000105,5]
[348111680,1736325047480,-4808.74022022,0.000105,5]
[348111682,1736325047492,-1974.9101087,0.000105,5]
[348111685,1736325047503,-21374.17669279,0.000105,5]
[348111687,1736325047514,-13626.47147605,0.000105,5]
[348111689,1736325047525,-40591.51144084,0.000105,5]
[348111691,1736325047539,-8296.4823093,0.000105,5]
[348111753,1736325048284,-159.93891928,9.973e-05,2]
[348111755,1736325048294,-286.99233809,0.0001049,2]
[348111756,1736325048304,-157.34534687,0.000105,5]
[348111759,1736325048323,-106000.0,0.000105,5]
[348111761,1736325048334,-278.20000002,0.000105,5]
[348111764,1736325048347,-2156.03251395,0.000105,5]
[348111766,1736325048359,-4853.69471217,0.000105,5]
[348111768,1736325048371,-19000.00000001,0.000105,5]
[348111770,1736325048382,-722.19529931,0.000105,5]
[348111772,1736325048395,-7729.47681043,0.000105,5]
[348111776,1736325048418,-523.904,0.000105,5]
[348111778,1736325048429,-561.17682,0.000105,5]
[348111780,1736325048441,-856.2799995,0.000105,5]
[348111783,1736325048458,-1787.55805162,0.000105,5]
[348111785,1736325048469,-151627.34820672,0.000105,5]
[348111787,1736325048480,-1674.232872,0.000105,5]
[348111789,1736325048492,-1201.48679249,0.000105,5]
[348111792,1736325048503,-2240.91721747,0.000105,5]
[348111802,1736325048604,-24593.62384073,0.000105,5]
[348111805,1736325048625,-495.49838774,9.998e-05,2]
[348111808,1736325048638,-4.50161226,9.998e-05,2]
[348111810,1736325048649,-1808.27066652,0.000105,5]
[348111812,1736325048660,-959.56,0.000105,5]
[348111814,1736325048671,-674.463281,0.000105,5]
[348111816,1736325048683,-959.28,0.000105,5]
[348111818,1736325048694,-1683.85,0.000105,5]
[348111820,1736325048706,-437.91,0.000105,5]
[348111823,1736325048717,-802.66496489,0.000105,5]
[348111825,1736325048729,-632.27300002,0.000105,5]
[348111827,1736325048740,-425.1582348,0.000105,5]
[348111845,1736325048903,-390.07,9.997e-05,2]
[348111847,1736325048912,-6581.41568337,0.0001015,2]
[348111849,1736325048923,-759.32960189,0.0001015,2]
[348111851,1736325048935,-588.53299821,0.0001015,2]
[348111853,1736325048948,-5033.30158537,0.0001015,2]
[348111855,1736325048959,-500.0,0.00010272,2]
[348111857,1736325048970,-699534.56067482,0.000105,5]
[348111860,1736325048982,-1132.58449139,0.000105,5]
[348111862,1736325049001,-104139.06939481,0.000105,5]
[348111865,1736325049013,-6855.90067227,0.000105,5]
[348111867,1736325049028,-43219.9551316,0.000105,5]
[348111869,1736325049042,-1580.61261136,0.000105,5]
[348111871,1736325049054,-683.5473824,0.000105,5]
[348111874,1736325049072,-7336.18371553,0.000105,5]
[348111876,1736325049084,-2695.74136285,0.000105,5]
[348111878,1736325049096,-11603.05643601,0.000105,5]
[348111881,1736325049111,-21533.27470492,0.000105,5]
[348111883,1736325049123,-10377.31968114,0.000105,5]
[348111888,1736325049161,-500.0,9.997e-05,2]
[348111890,1736325049171,-579.02,9.998e-05,2]
[348111892,1736325049181,-4163.72940921,0.000105,5]
[348111894,1736325049195,-753.05404796,0.000105,5]
[348111896,1736325049208,-930.16104195,0.000105,5]
[348111899,1736325049220,-1469.6840553,0.000105,5]
[348111931,1736325049531,-500.0,9.998e-05,2]
[348111933,1736325049541,-297.186653,9.998e-05,2]
[348111935,1736325049550,-1252.09042935,9.998e-05,2]
[348111937,1736325049561,-549.61957397,9.998e-05,2]
[348111939,1736325049573,-463.49596685,9.998e-05,2]
[348111941,1736325049584,-324.95834368,9.998e-05,2]
[348111943,1736325049595,-1865.90015416,9.998e-05,2]
[348111946,1736325049607,-500.0,9.998e-05,2]
[348111948,1736325049618,-602.0,9.998e-05,2]
[348111950,1736325049631,-1303.17693193,9.998e-05,2]
[348111952,1736325049642,-4531.52364087,9.998e-05,2]
[348111955,1736325049653,-379.32674569,0.00010241,2]
[348111957,1736325049668,-2.56615718,0.00010241,2]
[348111959,1736325049679,-500.0,0.00010272,2]
[348111961,1736325049688,-297.186653,0.00010272,2]
[348111963,1736325049698,-381.89290287,0.00010414,2]
[348111965,1736325049708,-37735.07818096,0.000105,5]
[348111968,1736325049720,-7242.9568409,0.000105,5]
[348111970,1736325049731,-8987.6809423,0.000105,5]